[Event "Titled Tuesday Blitz August 16 Late 2022"]
[White "Vagman, Roy"]
[Black "Kovacevic, Radmila"]
[WhiteFideId "2828995"]
[BlackFideId "933171"]
[WhiteElo "1956"]
[BlackElo "2157"]
[Result "1-0"]
[Round "02"]
[TimeControl "180+1"]
[Date "2022.08.18"]
[WhiteClock "0:00:00"]
[BlackClock "0:00:00"]

1. Nf3 {[%clk 0:00:00]}  d5 {[%clk 0:00:00]} 2. b3 {[%clk 0:00:00]}  g6 {[%clk 0:00:00]} 3. Bb2 {[%clk 0:00:00]}  Nf6 {[%clk 0:00:00]} 4. e3 {[%clk 0:00:00]}  Bg7 {[%clk 0:00:00]} 5. Be2 {[%clk 0:00:00]}  O-O {[%clk 0:00:00]} 6. O-O {[%clk 0:00:00]}  Bg4 {[%clk 0:00:00]} 7. h3 {[%clk 0:00:00]}  Bxf3 {[%clk 0:00:00]} 8. Bxf3 {[%clk 0:00:00]}  c6 {[%clk 0:00:00]} 9. d3 {[%clk 0:00:00]}  Nbd7 {[%clk 0:00:00]} 10. Nd2 {[%clk 0:00:00]}  e6 {[%clk 0:00:00]} 11. Qe2 {[%clk 0:00:00]}  b5 {[%clk 0:00:00]} 12. e4 {[%clk 0:00:00]}  h5 {[%clk 0:00:00]} 13. a4 {[%clk 0:00:00]}  a6 {[%clk 0:00:00]} 14. axb5 {[%clk 0:00:00]}  axb5 {[%clk 0:00:00]} 15. Rxa8 {[%clk 0:00:00]}  Qxa8 {[%clk 0:00:00]} 16. Ra1 {[%clk 0:00:00]}  Qb7 {[%clk 0:00:00]} 17. b4 {[%clk 0:00:00]}  Ra8 {[%clk 0:00:00]} 18. Nb3 {[%clk 0:00:00]}  Rxa1+ {[%clk 0:00:00]} 19. Bxa1 {[%clk 0:00:00]}  dxe4 {[%clk 0:00:00]} 20. dxe4 {[%clk 0:00:00]}  Qa8 {[%clk 0:00:00]} 21. Bd4 {[%clk 0:00:00]}  Qa3 {[%clk 0:00:00]} 22. Qd2 {[%clk 0:00:00]}  e5 {[%clk 0:00:00]} 23. Bc3 {[%clk 0:00:00]}  Qa8 {[%clk 0:00:00]} 24. g4 {[%clk 0:00:00]}  hxg4 {[%clk 0:00:00]} 25. hxg4 {[%clk 0:00:00]}  Qe8 {[%clk 0:00:00]} 26. Na5 {[%clk 0:00:00]}  Qe6 {[%clk 0:00:00]} 27. Qe2 {[%clk 0:00:00]}  Nb6 {[%clk 0:00:00]} 28. Kg2 {[%clk 0:00:00]}  Na4 {[%clk 0:00:00]} 29. Bd2 {[%clk 0:00:00]}  Nd7 {[%clk 0:00:00]} 30. g5 {[%clk 0:00:00]}  Ndb6 {[%clk 0:00:00]} 31. Bg4 {[%clk 0:00:00]}  Qa2 {[%clk 0:00:00]} 32. Be3 {[%clk 0:00:00]}  Nc4 {[%clk 0:00:00]} 33. Nxc6 {[%clk 0:00:00]}  Nc3 {[%clk 0:00:00]} 34. Qd3 {[%clk 0:00:00]}  Nxe3+ {[%clk 0:00:00]} 35. fxe3 {[%clk 0:00:00]}  Na4 {[%clk 0:00:00]} 36. Ne7+ {[%clk 0:00:00]}  Kh7 {[%clk 0:00:00]} 37. Qd1 {[%clk 0:00:00]}  Bf8 {[%clk 0:00:00]} 38. Qh1+ {[%clk 0:00:00]}  Kg7 {[%clk 0:00:00]} 39. Qh6# {[%clk 0:00:00]} 1-0


[Site "https://www.chess.com"]

[Event "Titled Tuesday Blitz August 16 Late 2022"]
[White "Vargas, Mauricio"]
[Black "Ferreira, Vitor Hugo Vieira"]
[WhiteFideId "4404572"]
[BlackFideId "2119765"]
[WhiteElo "2004"]
[BlackElo "2168"]
[Result "0-1"]
[Round "02"]
[TimeControl "180+1"]
[Date "2022.08.18"]
[WhiteClock "0:00:00"]
[BlackClock "0:00:00"]

1. e4 {[%clk 0:00:00]}  c5 {[%clk 0:00:00]} 2. Nc3 {[%clk 0:00:00]}  Nc6 {[%clk 0:00:00]} 3. f4 {[%clk 0:00:00]}  e6 {[%clk 0:00:00]} 4. Nf3 {[%clk 0:00:00]}  a6 {[%clk 0:00:00]} 5. d3 {[%clk 0:00:00]}  d5 {[%clk 0:00:00]} 6. e5 {[%clk 0:00:00]}  Nh6 {[%clk 0:00:00]} 7. h3 {[%clk 0:00:00]}  Nf5 {[%clk 0:00:00]} 8. g4 {[%clk 0:00:00]}  Nh4 {[%clk 0:00:00]} 9. Nh2 {[%clk 0:00:00]}  f6 {[%clk 0:00:00]} 10. Be2 {[%clk 0:00:00]}  fxe5 {[%clk 0:00:00]} 11. fxe5 {[%clk 0:00:00]}  Ng2+ {[%clk 0:00:00]} 12. Kf2 {[%clk 0:00:00]}  Nh4 {[%clk 0:00:00]} 13. Bf4 {[%clk 0:00:00]}  Ng6 {[%clk 0:00:00]} 14. Bg3 {[%clk 0:00:00]}  Ngxe5 {[%clk 0:00:00]} 15. Rf1 {[%clk 0:00:00]}  Be7 {[%clk 0:00:00]} 16. Kg1 {[%clk 0:00:00]}  Bh4 {[%clk 0:00:00]} 17. Qe1 {[%clk 0:00:00]}  Ng6 {[%clk 0:00:00]} 18. Nf3 {[%clk 0:00:00]}  Bxg3 {[%clk 0:00:00]} 19. Qxg3 {[%clk 0:00:00]}  O-O {[%clk 0:00:00]} 20. h4 {[%clk 0:00:00]}  Bd7 {[%clk 0:00:00]} 21. h5 {[%clk 0:00:00]}  Nf4 {[%clk 0:00:00]} 22. Rae1 {[%clk 0:00:00]}  Qc7 {[%clk 0:00:00]} 23. Kh2 {[%clk 0:00:00]}  Rac8 {[%clk 0:00:00]} 24. Ng5 {[%clk 0:00:00]}  Nxe2 {[%clk 0:00:00]} 25. Rxe2 {[%clk 0:00:00]}  Qxg3+ {[%clk 0:00:00]} 26. Kxg3 {[%clk 0:00:00]}  Rxf1 {[%clk 0:00:00]} 27. Na4 {[%clk 0:00:00]}  Nd4 {[%clk 0:00:00]} 28. Rg2 {[%clk 0:00:00]}  Bxa4 {[%clk 0:00:00]} 29. b3 {[%clk 0:00:00]}  Bd7 {[%clk 0:00:00]} 30. c3 {[%clk 0:00:00]}  Nc6 {[%clk 0:00:00]} 31. h6 {[%clk 0:00:00]}  gxh6 {[%clk 0:00:00]} 32. Nf3 {[%clk 0:00:00]}  Rf8 {[%clk 0:00:00]} 33. Nh4 {[%clk 0:00:00]}  Ne5 {[%clk 0:00:00]} 34. d4 {[%clk 0:00:00]}  cxd4 {[%clk 0:00:00]} 35. cxd4 {[%clk 0:00:00]}  Ng6 {[%clk 0:00:00]} 36. Nxg6 {[%clk 0:00:00]}  hxg6 {[%clk 0:00:00]} 37. Kh2 {[%clk 0:00:00]}  R8f2 {[%clk 0:00:00]} 38. Kg3 {[%clk 0:00:00]}  Rxg2+ {[%clk 0:00:00]} 39. Kxg2 {[%clk 0:00:00]}  Ra1 {[%clk 0:00:00]} 40. a4 {[%clk 0:00:00]}  Ra2+ {[%clk 0:00:00]} 41. Kf3 {[%clk 0:00:00]}  Rb2 {[%clk 0:00:00]} 42. b4 {[%clk 0:00:00]}  Rb3+ {[%clk 0:00:00]} 43. Kf4 {[%clk 0:00:00]}  Rxb4 {[%clk 0:00:00]} 44. Ke5 {[%clk 0:00:00]}  Kf7 {[%clk 0:00:00]} 45. Kd6 {[%clk 0:00:00]}  Ke8 {[%clk 0:00:00]} 46. a5 {[%clk 0:00:00]}  h5 {[%clk 0:00:00]} 47. Kc5 {[%clk 0:00:00]}  Rb5+ {[%clk 0:00:00]} 48. Kd6 {[%clk 0:00:00]}  Rxa5 {[%clk 0:00:00]} 49. Kc7 {[%clk 0:00:00]}  hxg4 {[%clk 0:00:00]} 50. Kb6 {[%clk 0:00:00]}  Rb5+ {[%clk 0:00:00]} 51. Kc7 {[%clk 0:00:00]}  g3 {[%clk 0:00:00]} 52. Kd6 {[%clk 0:00:00]}  g2 {[%clk 0:00:00]} 53. Ke5 {[%clk 0:00:00]}  g1=Q {[%clk 0:00:00]} 54. Kd6 {[%clk 0:00:00]}  Qxd4 {[%clk 0:00:00]} 55. Kc7 {[%clk 0:00:00]}  Qb6+ {[%clk 0:00:00]} 56. Kb8 {[%clk 0:00:00]}  Qd8+ {[%clk 0:00:00]} 57. Ka7 {[%clk 0:00:00]}  b6 {[%clk 0:00:00]} 58. Kxa6 {[%clk 0:00:00]}  Ra5+ {[%clk 0:00:00]} 59. Kb7 {[%clk 0:00:00]}  Qc8+ {[%clk 0:00:00]} 60. Kxb6 {[%clk 0:00:00]}  Qc5+ {[%clk 0:00:00]} 61. Kb7 {[%clk 0:00:00]}  Ra7+ {[%clk 0:00:00]} 62. Kb8 {[%clk 0:00:00]}  Qc7# {[%clk 0:00:00]} 0-1


[Site "https://www.chess.com"]

[Event "Titled Tuesday Blitz August 16 Late 2022"]
[White "Wachinger, Guenther"]
[Black "Coelho, Ramyres Santana"]
[WhiteFideId "4604261"]
[BlackFideId "2120690"]
[WhiteElo "2212"]
[BlackElo "1888"]
[Result "1/2-1/2"]
[Round "02"]
[TimeControl "180+1"]
[Date "2022.08.18"]
[WhiteClock "0:00:00"]
[BlackClock "0:00:00"]

1. e4 {[%clk 0:00:00]}  c5 {[%clk 0:00:00]} 2. Nf3 {[%clk 0:00:00]}  d6 {[%clk 0:00:00]} 3. Bb5+ {[%clk 0:00:00]}  Nd7 {[%clk 0:00:00]} 4. a4 {[%clk 0:00:00]}  a6 {[%clk 0:00:00]} 5. Be2 {[%clk 0:00:00]}  g6 {[%clk 0:00:00]} 6. O-O {[%clk 0:00:00]}  Bg7 {[%clk 0:00:00]} 7. Nc3 {[%clk 0:00:00]}  e5 {[%clk 0:00:00]} 8. Nd5 {[%clk 0:00:00]}  Ngf6 {[%clk 0:00:00]} 9. d3 {[%clk 0:00:00]}  Nxd5 {[%clk 0:00:00]} 10. exd5 {[%clk 0:00:00]}  O-O {[%clk 0:00:00]} 11. a5 {[%clk 0:00:00]}  h6 {[%clk 0:00:00]} 12. c4 {[%clk 0:00:00]}  f5 {[%clk 0:00:00]} 13. Rb1 {[%clk 0:00:00]}  g5 {[%clk 0:00:00]} 14. b4 {[%clk 0:00:00]}  g4 {[%clk 0:00:00]} 15. Ne1 {[%clk 0:00:00]}  Qh4 {[%clk 0:00:00]} 16. Ba3 {[%clk 0:00:00]}  h5 {[%clk 0:00:00]} 17. bxc5 {[%clk 0:00:00]}  Nxc5 {[%clk 0:00:00]} 18. Bxc5 {[%clk 0:00:00]}  dxc5 {[%clk 0:00:00]} 19. Qa4 {[%clk 0:00:00]}  f4 {[%clk 0:00:00]} 20. d6 {[%clk 0:00:00]}  Bf5 {[%clk 0:00:00]} 21. Rxb7 {[%clk 0:00:00]}  e4 {[%clk 0:00:00]} 22. Qc6 {[%clk 0:00:00]}  f3 {[%clk 0:00:00]} 23. Bd1 {[%clk 0:00:00]}  fxg2 {[%clk 0:00:00]} 24. Nxg2 {[%clk 0:00:00]}  Qg5 {[%clk 0:00:00]} 25. dxe4 {[%clk 0:00:00]}  Be6 {[%clk 0:00:00]} 26. Re7 {[%clk 0:00:00]}  Bxc4 {[%clk 0:00:00]} 27. Ne3 {[%clk 0:00:00]}  Bxf1 {[%clk 0:00:00]} 28. Nxf1 {[%clk 0:00:00]}  Qf6 {[%clk 0:00:00]} 29. Bb3+ {[%clk 0:00:00]}  Kh8 {[%clk 0:00:00]} 30. Qxc5 {[%clk 0:00:00]}  Bh6 {[%clk 0:00:00]} 31. Re6 {[%clk 0:00:00]}  Qg5 {[%clk 0:00:00]} 32. Qxg5 {[%clk 0:00:00]}  Bxg5 {[%clk 0:00:00]} 33. Bd5 {[%clk 0:00:00]}  Rae8 {[%clk 0:00:00]} 34. Rxe8 {[%clk 0:00:00]}  Rxe8 {[%clk 0:00:00]} 35. Ng3 {[%clk 0:00:00]}  Bf4 {[%clk 0:00:00]} 36. Nxh5 {[%clk 0:00:00]}  Bxd6 {[%clk 0:00:00]} 37. Nf6 {[%clk 0:00:00]}  Rf8 {[%clk 0:00:00]} 38. Nxg4 {[%clk 0:00:00]}  Bc5 {[%clk 0:00:00]} 39. Kg2 {[%clk 0:00:00]}  Kg7 {[%clk 0:00:00]} 40. Ne5 {[%clk 0:00:00]}  Rxf2+ {[%clk 0:00:00]} 41. Kg3 {[%clk 0:00:00]}  Rd2 {[%clk 0:00:00]} 42. Nd7 {[%clk 0:00:00]}  Bd6+ {[%clk 0:00:00]} 43. Kg4 {[%clk 0:00:00]}  Rxh2 {[%clk 0:00:00]} 44. Kf5 {[%clk 0:00:00]}  Rf2+ {[%clk 0:00:00]} 45. Ke6 {[%clk 0:00:00]}  Bb4 {[%clk 0:00:00]} 46. e5 {[%clk 0:00:00]}  Re2 {[%clk 0:00:00]} 47. Nf6 {[%clk 0:00:00]}  Bc3 {[%clk 0:00:00]} 48. Ng4 {[%clk 0:00:00]}  Re1 {[%clk 0:00:00]} 49. Bc4 {[%clk 0:00:00]}  Kg6 {[%clk 0:00:00]} 50. Bxa6 {[%clk 0:00:00]}  Kg5 {[%clk 0:00:00]} 51. Nf6 {[%clk 0:00:00]}  Rxe5+ {[%clk 0:00:00]} 52. Kd7 {[%clk 0:00:00]}  Rxa5 {[%clk 0:00:00]} 53. Ne4+ {[%clk 0:00:00]}  Kh4 {[%clk 0:00:00]} 54. Nxc3 {[%clk 0:00:00]}  Rxa6 {[%clk 0:00:00]} 55. Nd5 {[%clk 0:00:00]}  Ra5 {[%clk 0:00:00]} 56. Nc7 {[%clk 0:00:00]}  Ra7 {[%clk 0:00:00]} 57. Kc6 {[%clk 0:00:00]}  Ra1 {[%clk 0:00:00]} 58. Kb6 {[%clk 0:00:00]}  Rc1 {[%clk 0:00:00]} 59. Nb5 {[%clk 0:00:00]}  Rb1 {[%clk 0:00:00]} 60. Kc5 {[%clk 0:00:00]}  Kg4 {[%clk 0:00:00]} 61. Nd4 {[%clk 0:00:00]}  Kf4 {[%clk 0:00:00]} 62. Kc4 {[%clk 0:00:00]}  Ke4 {[%clk 0:00:00]} 63. Nc2 {[%clk 0:00:00]}  Rc1 {[%clk 0:00:00]} 64. Kc3 {[%clk 0:00:00]}  Kf3 {[%clk 0:00:00]} 65. Kd3 {[%clk 0:00:00]}  Kf2 {[%clk 0:00:00]} 66. Kd2 {[%clk 0:00:00]}  Rb1 {[%clk 0:00:00]} 67. Nd4 {[%clk 0:00:00]}  Rb8 {[%clk 0:00:00]} 68. Kd3 {[%clk 0:00:00]}  Rd8 {[%clk 0:00:00]} 69. Ke4 {[%clk 0:00:00]}  Kg3 {[%clk 0:00:00]} 70. Ke5 {[%clk 0:00:00]}  Kg4 {[%clk 0:00:00]} 71. Ne6 {[%clk 0:00:00]}  Re8 {[%clk 0:00:00]} 72. Kf6 {[%clk 0:00:00]}  Ra8 {[%clk 0:00:00]} 73. Ke5 {[%clk 0:00:00]}  Kh5 {[%clk 0:00:00]} 74. Kf6 {[%clk 0:00:00]}  Kh6 {[%clk 0:00:00]} 75. Ke5 {[%clk 0:00:00]}  Kg6 {[%clk 0:00:00]} 76. Nf4+ {[%clk 0:00:00]}  Kf7 {[%clk 0:00:00]} 77. Nd5 {[%clk 0:00:00]}  Ra5 {[%clk 0:00:00]} 78. Kd4 {[%clk 0:00:00]}  Ke6 {[%clk 0:00:00]} 79. Nf4+ {[%clk 0:00:00]}  Kf5 {[%clk 0:00:00]} 80. Nd3 {[%clk 0:00:00]}  Ke6 {[%clk 0:00:00]} 81. Nf4+ {[%clk 0:00:00]}  Kd6 {[%clk 0:00:00]} 82. Nd3 {[%clk 0:00:00]}  Rd5+ {[%clk 0:00:00]} 83. Ke4 {[%clk 0:00:00]}  Ra5 {[%clk 0:00:00]} 84. Nf4 {[%clk 0:00:00]}  Ra4+ {[%clk 0:00:00]} 85. Ke3 {[%clk 0:00:00]}  Ke5 {[%clk 0:00:00]} 86. Nd3+ {[%clk 0:00:00]}  Kd5 {[%clk 0:00:00]} 87. Nf4+ {[%clk 0:00:00]}  Kc4 {[%clk 0:00:00]} 88. Ke4 {[%clk 0:00:00]}  Kc5+ {[%clk 0:00:00]} 89. Ke5 {[%clk 0:00:00]} 1/2-1/2


[Site "https://www.chess.com"]

[Event "Titled Tuesday Blitz August 16 Late 2022"]
[White "Wieczorek, Oskar"]
[Black "Do Nascimento,Christian Almeida"]
[WhiteFideId "1133950"]
[BlackFideId "2143801"]
[WhiteElo "2302"]
[BlackElo "2085"]
[Result "1-0"]
[Round "02"]
[TimeControl "180+1"]
[Date "2022.08.16"]
[WhiteClock "0:00:06"]
[BlackClock "0:00:11"]

1. e4 {[%clk 0:03:00]}  c5 {[%clk 0:02:59]} 2. Nf3 {[%clk 0:02:58]}  d6 {[%clk 0:02:59]} 3. d4 {[%clk 0:02:58]}  cxd4 {[%clk 0:03:00]} 4. Nxd4 {[%clk 0:02:59]}  Nf6 {[%clk 0:03:00]} 5. Nc3 {[%clk 0:03:00]}  a6 {[%clk 0:02:58]} 6. h4 {[%clk 0:03:01]}  e6 {[%clk 0:02:58]} 7. g4 {[%clk 0:02:59]}  Qc7 {[%clk 0:02:44]} 8. g5 {[%clk 0:02:59]}  Nfd7 {[%clk 0:02:44]} 9. Be3 {[%clk 0:02:59]}  Be7 {[%clk 0:02:42]} 10. f4 {[%clk 0:02:50]}  Nc6 {[%clk 0:02:43]} 11. Qd2 {[%clk 0:02:32]}  O-O {[%clk 0:02:30]} 12. f5 {[%clk 0:02:14]}  Nde5 {[%clk 0:02:28]} 13. O-O-O {[%clk 0:02:13]}  Nxd4 {[%clk 0:02:23]} 14. Qxd4 {[%clk 0:02:13]}  b5 {[%clk 0:02:17]} 15. Rg1 {[%clk 0:02:11]}  Kh8 {[%clk 0:02:04]} 16. Be2 {[%clk 0:02:02]}  b4 {[%clk 0:01:41]} 17. Qxb4 {[%clk 0:01:57]}  Rb8 {[%clk 0:01:37]} 18. Qd4 {[%clk 0:01:54]}  Bd7 {[%clk 0:01:29]} 19. Rgf1 {[%clk 0:01:36]}  Rfc8 {[%clk 0:01:21]} 20. f6 {[%clk 0:01:35]}  Bf8 {[%clk 0:01:18]} 21. fxg7+ {[%clk 0:01:33]}  Bxg7 {[%clk 0:01:18]} 22. Qxd6 {[%clk 0:01:29]}  Qb7 {[%clk 0:01:15]} 23. Bd4 {[%clk 0:00:40]}  Qxb2+ {[%clk 0:01:07]} 24. Kd2 {[%clk 0:00:41]}  Ba4 {[%clk 0:00:52]} 25. Bd3 {[%clk 0:00:22]}  Rd8 {[%clk 0:00:35]} 26. Qc7 {[%clk 0:00:22]}  Rbc8 {[%clk 0:00:28]} 27. Ne2 {[%clk 0:00:11]}  Qb4+ {[%clk 0:00:21]} 28. Bc3 {[%clk 0:00:09]}  Qxe4 {[%clk 0:00:20]} 29. Qxc8 {[%clk 0:00:08]}  Qd5 {[%clk 0:00:12]} 30. Qxa6 {[%clk 0:00:06]}  Bb5 {[%clk 0:00:11]} 31. Qa3 {[%clk 0:00:05]}  Nxd3 {[%clk 0:00:11]} 32. cxd3 {[%clk 0:00:04]}  Qxd3+ {[%clk 0:00:12]} 33. Kc1 {[%clk 0:00:05]}  Qe3+ {[%clk 0:00:12]} 34. Kb2 {[%clk 0:00:05]}  Rb8 {[%clk 0:00:12]} 35. Bxg7+ {[%clk 0:00:05]}  Kg8 {[%clk 0:00:12]} 36. Qxe3 {[%clk 0:00:06]}  Bxe2+ {[%clk 0:00:10]} 37. Ka1 {[%clk 0:00:07]}  Bxf1 {[%clk 0:00:11]} 38. Rxf1 {[%clk 0:00:06]} 1-0


[Site "https://www.chess.com"]

[Event "Titled Tuesday Blitz August 16 Late 2022"]
[White "Winkels, Marcel"]
[Black "Chernomordik, Pavel"]
[WhiteFideId "1003887"]
[BlackFideId "2804530"]
[WhiteElo "1900"]
[BlackElo "2217"]
[Result "0-1"]
[Round "02"]
[TimeControl "180+1"]
[Date "2022.08.18"]
[WhiteClock "0:00:00"]
[BlackClock "0:00:00"]

1. e4 {[%clk 0:00:00]}  g6 {[%clk 0:00:00]} 2. d4 {[%clk 0:00:00]}  Bg7 {[%clk 0:00:00]} 3. Nc3 {[%clk 0:00:00]}  d6 {[%clk 0:00:00]} 4. Be3 {[%clk 0:00:00]}  a6 {[%clk 0:00:00]} 5. Nf3 {[%clk 0:00:00]}  b5 {[%clk 0:00:00]} 6. a3 {[%clk 0:00:00]}  Bb7 {[%clk 0:00:00]} 7. Bd3 {[%clk 0:00:00]}  Nd7 {[%clk 0:00:00]} 8. Qd2 {[%clk 0:00:00]}  c5 {[%clk 0:00:00]} 9. d5 {[%clk 0:00:00]}  Qc7 {[%clk 0:00:00]} 10. O-O {[%clk 0:00:00]}  Ngf6 {[%clk 0:00:00]} 11. Bh6 {[%clk 0:00:00]}  O-O {[%clk 0:00:00]} 12. Bxg7 {[%clk 0:00:00]}  Kxg7 {[%clk 0:00:00]} 13. Rfe1 {[%clk 0:00:00]}  e5 {[%clk 0:00:00]} 14. dxe6 {[%clk 0:00:00]}  fxe6 {[%clk 0:00:00]} 15. Ng5 {[%clk 0:00:00]}  Rae8 {[%clk 0:00:00]} 16. Rad1 {[%clk 0:00:00]}  h6 {[%clk 0:00:00]} 17. Nf3 {[%clk 0:00:00]}  d5 {[%clk 0:00:00]} 18. exd5 {[%clk 0:00:00]}  exd5 {[%clk 0:00:00]} 19. Nh4 {[%clk 0:00:00]}  Ng4 {[%clk 0:00:00]} 20. g3 {[%clk 0:00:00]}  Rxf2 {[%clk 0:00:00]} 21. Rxe8 {[%clk 0:00:00]}  Ndf6 {[%clk 0:00:00]} 22. Re2 {[%clk 0:00:00]}  Rxh2 {[%clk 0:00:00]} 23. Qf4 {[%clk 0:00:00]}  Qxf4 {[%clk 0:00:00]} 24. gxf4 {[%clk 0:00:00]}  Rxh4 {[%clk 0:00:00]} 25. Re7+ {[%clk 0:00:00]}  Kf8 {[%clk 0:00:00]} 26. Rxb7 {[%clk 0:00:00]}  Ne3 {[%clk 0:00:00]} 27. Re1 {[%clk 0:00:00]}  d4 {[%clk 0:00:00]} 28. Ne4 {[%clk 0:00:00]}  Rg4+ {[%clk 0:00:00]} 29. Kf2 {[%clk 0:00:00]}  Rxf4+ {[%clk 0:00:00]} 30. Kg3 {[%clk 0:00:00]}  Rg4+ {[%clk 0:00:00]} 31. Kf3 {[%clk 0:00:00]}  Nfd5 {[%clk 0:00:00]} 32. Nd6 {[%clk 0:00:00]}  Rf4+ {[%clk 0:00:00]} 33. Ke2 {[%clk 0:00:00]}  c4 {[%clk 0:00:00]} 34. Bxg6 {[%clk 0:00:00]}  Rg4 {[%clk 0:00:00]} 35. Rf7+ {[%clk 0:00:00]}  Kg8 {[%clk 0:00:00]} 36. Bh7+ {[%clk 0:00:00]}  Kh8 {[%clk 0:00:00]} 37. Ref1 {[%clk 0:00:00]}  Nxf1 {[%clk 0:00:00]} 38. Rxf1 {[%clk 0:00:00]}  Kxh7 {[%clk 0:00:00]} 39. Rf5 {[%clk 0:00:00]}  Ne3 {[%clk 0:00:00]} 40. Rf7+ {[%clk 0:00:00]}  Kg6 {[%clk 0:00:00]} 41. Re7 {[%clk 0:00:00]}  Rg2+ {[%clk 0:00:00]} 42. Kf3 {[%clk 0:00:00]}  Rxc2 {[%clk 0:00:00]} 43. Ke4 {[%clk 0:00:00]}  Ng4 {[%clk 0:00:00]} 44. Kxd4 {[%clk 0:00:00]}  Rd2+ {[%clk 0:00:00]} 45. Kc5 {[%clk 0:00:00]}  Rxb2 {[%clk 0:00:00]} 46. a4 {[%clk 0:00:00]}  c3 {[%clk 0:00:00]} 47. Re6+ {[%clk 0:00:00]}  Kg5 {[%clk 0:00:00]} 48. Nf7+ {[%clk 0:00:00]}  Kf5 {[%clk 0:00:00]} 49. Re1 {[%clk 0:00:00]}  c2 {[%clk 0:00:00]} 50. Rc1 {[%clk 0:00:00]}  Ne3 {[%clk 0:00:00]} 51. axb5 {[%clk 0:00:00]}  Rxb5+ {[%clk 0:00:00]} 52. Kd4 {[%clk 0:00:00]}  Rb1 {[%clk 0:00:00]} 0-1


[Site "https://www.chess.com"]

[Event "Titled Tuesday Blitz August 16 Late 2022"]
[White "Wu, Rochelle"]
[Black "Oro, Luis"]
[WhiteFideId "30908132"]
[BlackFideId "104094"]
[WhiteElo "2168"]
[BlackElo "2255"]
[Result "1-0"]
[Round "02"]
[TimeControl "180+1"]
[Date "2022.08.18"]
[WhiteClock "0:00:00"]
[BlackClock "0:00:00"]

1. d4 {[%clk 0:00:00]}  Nf6 {[%clk 0:00:00]} 2. c4 {[%clk 0:00:00]}  e6 {[%clk 0:00:00]} 3. Nc3 {[%clk 0:00:00]}  Bb4 {[%clk 0:00:00]} 4. Qc2 {[%clk 0:00:00]}  O-O {[%clk 0:00:00]} 5. a3 {[%clk 0:00:00]}  Bxc3+ {[%clk 0:00:00]} 6. Qxc3 {[%clk 0:00:00]}  Ne4 {[%clk 0:00:00]} 7. Qc2 {[%clk 0:00:00]}  d5 {[%clk 0:00:00]} 8. cxd5 {[%clk 0:00:00]}  exd5 {[%clk 0:00:00]} 9. Nh3 {[%clk 0:00:00]}  Bxh3 {[%clk 0:00:00]} 10. gxh3 {[%clk 0:00:00]}  Nc6 {[%clk 0:00:00]} 11. Be3 {[%clk 0:00:00]}  f5 {[%clk 0:00:00]} 12. O-O-O {[%clk 0:00:00]}  f4 {[%clk 0:00:00]} 13. f3 {[%clk 0:00:00]}  fxe3 {[%clk 0:00:00]} 14. fxe4 {[%clk 0:00:00]}  Rf4 {[%clk 0:00:00]} 15. Bg2 {[%clk 0:00:00]}  dxe4 {[%clk 0:00:00]} 16. Bxe4 {[%clk 0:00:00]}  Nxd4 {[%clk 0:00:00]} 17. Qc4+ {[%clk 0:00:00]}  Kh8 {[%clk 0:00:00]} 18. Rxd4 {[%clk 0:00:00]}  Qf6 {[%clk 0:00:00]} 19. Rhd1 {[%clk 0:00:00]}  Re8 {[%clk 0:00:00]} 20. Bxb7 {[%clk 0:00:00]}  Rf2 {[%clk 0:00:00]} 21. Qc6 {[%clk 0:00:00]}  Qxc6+ {[%clk 0:00:00]} 22. Bxc6 {[%clk 0:00:00]}  Ref8 {[%clk 0:00:00]} 23. Rd8 {[%clk 0:00:00]}  h6 {[%clk 0:00:00]} 24. Rxf8+ {[%clk 0:00:00]}  Rxf8 {[%clk 0:00:00]} 25. Bf3 {[%clk 0:00:00]} 1-0


[Site "https://www.chess.com"]

[Event "Titled Tuesday Blitz August 16 Late 2022"]
[White "Zou, Chen"]
[Black "Remolar Gallen, Jose"]
[WhiteFideId "8610959"]
[BlackFideId "2215187"]
[WhiteElo "2276"]
[BlackElo "2205"]
[Result "1-0"]
[Round "02"]
[TimeControl "180+1"]
[Date "2022.08.18"]
[WhiteClock "0:00:00"]
[BlackClock "0:00:00"]

1. d4 {[%clk 0:00:00]}  Nf6 {[%clk 0:00:00]} 2. c4 {[%clk 0:00:00]}  g6 {[%clk 0:00:00]} 3. Nf3 {[%clk 0:00:00]}  Bg7 {[%clk 0:00:00]} 4. g3 {[%clk 0:00:00]}  O-O {[%clk 0:00:00]} 5. Bg2 {[%clk 0:00:00]}  d6 {[%clk 0:00:00]} 6. O-O {[%clk 0:00:00]}  Nc6 {[%clk 0:00:00]} 7. Nc3 {[%clk 0:00:00]}  a6 {[%clk 0:00:00]} 8. d5 {[%clk 0:00:00]}  Na5 {[%clk 0:00:00]} 9. Nd2 {[%clk 0:00:00]}  c5 {[%clk 0:00:00]} 10. Rb1 {[%clk 0:00:00]}  e6 {[%clk 0:00:00]} 11. b3 {[%clk 0:00:00]}  exd5 {[%clk 0:00:00]} 12. Nxd5 {[%clk 0:00:00]}  Nxd5 {[%clk 0:00:00]} 13. Bxd5 {[%clk 0:00:00]}  Bh3 {[%clk 0:00:00]} 14. Re1 {[%clk 0:00:00]}  Nc6 {[%clk 0:00:00]} 15. Nf3 {[%clk 0:00:00]}  Nb4 {[%clk 0:00:00]} 16. Bxb7 {[%clk 0:00:00]}  Rb8 {[%clk 0:00:00]} 17. Be4 {[%clk 0:00:00]}  Nxa2 {[%clk 0:00:00]} 18. Bd2 {[%clk 0:00:00]}  Nc3 {[%clk 0:00:00]} 19. Bxc3 {[%clk 0:00:00]}  Bxc3 {[%clk 0:00:00]} 20. Nd2 {[%clk 0:00:00]}  Qa5 {[%clk 0:00:00]} 21. Nf3 {[%clk 0:00:00]}  Bxe1 {[%clk 0:00:00]} 22. Nxe1 {[%clk 0:00:00]}  Rfe8 {[%clk 0:00:00]} 23. Bc6 {[%clk 0:00:00]}  Red8 {[%clk 0:00:00]} 24. Nd3 {[%clk 0:00:00]}  Qc7 {[%clk 0:00:00]} 25. Bf3 {[%clk 0:00:00]}  Bf5 {[%clk 0:00:00]} 26. e4 {[%clk 0:00:00]}  Be6 {[%clk 0:00:00]} 27. h4 {[%clk 0:00:00]}  Rb6 {[%clk 0:00:00]} 28. h5 {[%clk 0:00:00]}  Rdb8 {[%clk 0:00:00]} 29. Qc2 {[%clk 0:00:00]}  a5 {[%clk 0:00:00]} 30. h6 {[%clk 0:00:00]}  Qe7 {[%clk 0:00:00]} 31. Qc3 {[%clk 0:00:00]}  Qf8 {[%clk 0:00:00]} 32. e5 {[%clk 0:00:00]}  dxe5 {[%clk 0:00:00]} 33. Qxe5 {[%clk 0:00:00]}  Rxb3 {[%clk 0:00:00]} 34. Rxb3 {[%clk 0:00:00]}  Rxb3 {[%clk 0:00:00]} 35. Nxc5 {[%clk 0:00:00]}  Rb1+ {[%clk 0:00:00]} 36. Kg2 {[%clk 0:00:00]}  Bh3+ {[%clk 0:00:00]} 37. Kh2 {[%clk 0:00:00]}  Bc8 {[%clk 0:00:00]} 38. Qe3 {[%clk 0:00:00]}  Rb6 {[%clk 0:00:00]} 39. Bd5 {[%clk 0:00:00]}  Rf6 {[%clk 0:00:00]} 40. Ne4 {[%clk 0:00:00]}  Rf5 {[%clk 0:00:00]} 41. Kg2 {[%clk 0:00:00]}  Qe7 {[%clk 0:00:00]} 42. Nf6+ {[%clk 0:00:00]}  Kf8 {[%clk 0:00:00]} 43. Nxh7+ {[%clk 0:00:00]}  Ke8 {[%clk 0:00:00]} 44. Nf6+ {[%clk 0:00:00]}  Kd8 {[%clk 0:00:00]} 45. Qxe7+ {[%clk 0:00:00]}  Kxe7 {[%clk 0:00:00]} 46. h7 {[%clk 0:00:00]} 1-0


[Site "https://www.chess.com"]